[Event "Titled Tuesday Blitz May 30 Late 2023"]
[White "Bruedigam, Martin"]
[Black "Vlassov, Nikolai"]
[WhiteFideId "24608033"]
[BlackFideId "4103360"]
[WhiteElo "2331"]
[BlackElo "2324"]
[Result "0-1"]
[Round "10"]
[TimeControl "180+2"]
[Date "2023.05.31"]
[WhiteClock "0:00:01"]
[BlackClock "0:00:20"]

1. d4 {[%clk 0:03:00]}  Nf6 {[%clk 0:02:47]} 2. c4 {[%clk 0:03:00]}  Nc6 {[%clk 0:02:46]} 3. Nf3 {[%clk 0:02:48]}  e6 {[%clk 0:02:45]} 4. Nc3 {[%clk 0:02:44]}  Bb4 {[%clk 0:02:45]} 5. Bd2 {[%clk 0:02:44]}  d6 {[%clk 0:02:45]} 6. e3 {[%clk 0:02:39]}  O-O {[%clk 0:02:39]} 7. Be2 {[%clk 0:02:39]}  e5 {[%clk 0:02:34]} 8. O-O {[%clk 0:02:39]}  Bg4 {[%clk 0:02:32]} 9. a3 {[%clk 0:02:28]}  Bxc3 {[%clk 0:02:31]} 10. Bxc3 {[%clk 0:02:29]}  Ne4 {[%clk 0:02:27]} 11. Rc1 {[%clk 0:02:22]}  Nxc3 {[%clk 0:02:26]} 12. Rxc3 {[%clk 0:02:23]}  Qf6 {[%clk 0:02:15]} 13. dxe5 {[%clk 0:01:57]}  dxe5 {[%clk 0:02:14]} 14. Nd2 {[%clk 0:01:55]}  Bxe2 {[%clk 0:02:06]} 15. Qxe2 {[%clk 0:01:56]}  Qg6 {[%clk 0:01:56]} 16. Nb3 {[%clk 0:01:49]}  Rad8 {[%clk 0:01:52]} 17. Nc5 {[%clk 0:01:27]}  b6 {[%clk 0:01:51]} 18. Nb3 {[%clk 0:01:18]}  Rd7 {[%clk 0:01:39]} 19. c5 {[%clk 0:01:18]}  Rfd8 {[%clk 0:01:39]} 20. cxb6 {[%clk 0:01:18]}  cxb6 {[%clk 0:01:39]} 21. Rfc1 {[%clk 0:01:13]}  Ne7 {[%clk 0:01:35]} 22. h3 {[%clk 0:01:10]}  h5 {[%clk 0:01:32]} 23. R3c2 {[%clk 0:01:04]}  Nf5 {[%clk 0:01:19]} 24. e4 {[%clk 0:00:51]}  Nd4 {[%clk 0:01:12]} 25. Nxd4 {[%clk 0:00:51]}  Rxd4 {[%clk 0:01:12]} 26. f3 {[%clk 0:00:51]}  Qg5 {[%clk 0:01:09]} 27. Rc8 {[%clk 0:00:46]}  Kh7 {[%clk 0:01:08]} 28. R8c2 {[%clk 0:00:36]}  Rd2 {[%clk 0:00:59]} 29. Qf1 {[%clk 0:00:35]}  Qe3+ {[%clk 0:00:58]} 30. Kh1 {[%clk 0:00:35]}  g6 {[%clk 0:00:48]} 31. Kh2 {[%clk 0:00:34]}  Kg7 {[%clk 0:00:40]} 32. Kh1 {[%clk 0:00:34]}  g5 {[%clk 0:00:35]} 33. Kh2 {[%clk 0:00:26]}  g4 {[%clk 0:00:34]} 34. Rxd2 {[%clk 0:00:08]}  Rxd2 {[%clk 0:00:33]} 35. Rc3 {[%clk 0:00:07]}  Qf4+ {[%clk 0:00:29]} 36. Kh1 {[%clk 0:00:08]}  Rxb2 {[%clk 0:00:28]} 37. hxg4 {[%clk 0:00:03]}  hxg4 {[%clk 0:00:28]} 38. Qc1 {[%clk 0:00:03]}  g3 {[%clk 0:00:20]} 39. Rc7 {[%clk 0:00:01]} 0-1


[Site "https://www.chess.com"]

[Event "Titled Tuesday Blitz May 30 Late 2023"]
[White "Filgueira, Hernan"]
[Black "Bernabeu Lopez, Carlos Javier"]
[WhiteFideId "101770"]
[BlackFideId "2235366"]
[WhiteElo "2363"]
[BlackElo "2344"]
[Result "0-1"]
[Round "10"]
[TimeControl "180+2"]
[Date "2023.05.31"]
[WhiteClock "0:00:06"]
[BlackClock "0:01:25"]

1. c4 {[%clk 0:02:59]}  Nf6 {[%clk 0:02:59]} 2. Nc3 {[%clk 0:02:58]}  g6 {[%clk 0:03:00]} 3. g3 {[%clk 0:02:58]}  Bg7 {[%clk 0:03:00]} 4. Bg2 {[%clk 0:02:58]}  O-O {[%clk 0:03:01]} 5. d3 {[%clk 0:02:57]}  d6 {[%clk 0:02:59]} 6. e4 {[%clk 0:02:57]}  c5 {[%clk 0:02:59]} 7. Nge2 {[%clk 0:02:57]}  Nc6 {[%clk 0:03:00]} 8. O-O {[%clk 0:02:57]}  Ne8 {[%clk 0:03:00]} 9. Be3 {[%clk 0:02:55]}  Nc7 {[%clk 0:03:01]} 10. d4 {[%clk 0:02:53]}  cxd4 {[%clk 0:03:00]} 11. Nxd4 {[%clk 0:02:53]}  Bd7 {[%clk 0:03:01]} 12. Qd2 {[%clk 0:02:49]}  Rc8 {[%clk 0:02:55]} 13. Nde2 {[%clk 0:02:48]}  Ne6 {[%clk 0:02:52]} 14. b3 {[%clk 0:02:46]}  Re8 {[%clk 0:02:48]} 15. Rad1 {[%clk 0:02:43]}  Qa5 {[%clk 0:02:49]} 16. f3 {[%clk 0:02:40]}  h5 {[%clk 0:02:45]} 17. h4 {[%clk 0:02:35]}  b6 {[%clk 0:02:42]} 18. Kh2 {[%clk 0:02:20]}  Qa6 {[%clk 0:02:29]} 19. f4 {[%clk 0:02:18]}  Nf8 {[%clk 0:02:27]} 20. Nd5 {[%clk 0:02:06]}  Nh7 {[%clk 0:02:27]} 21. Nec3 {[%clk 0:01:25]}  Bg4 {[%clk 0:02:25]} 22. Rc1 {[%clk 0:01:21]}  Qb7 {[%clk 0:02:25]} 23. Nb5 {[%clk 0:01:17]}  Qb8 {[%clk 0:02:21]} 24. f5 {[%clk 0:01:11]}  Ne5 {[%clk 0:02:19]} 25. Nf4 {[%clk 0:00:59]}  Nf6 {[%clk 0:02:15]} 26. Nc3 {[%clk 0:00:55]}  Kh7 {[%clk 0:02:14]} 27. Ncd5 {[%clk 0:00:54]}  Qb7 {[%clk 0:02:11]} 28. Nxf6+ {[%clk 0:00:53]}  Bxf6 {[%clk 0:02:12]} 29. Nd5 {[%clk 0:00:53]}  Rf8 {[%clk 0:02:09]} 30. Bh6 {[%clk 0:00:36]}  Bg7 {[%clk 0:02:08]} 31. Bg5 {[%clk 0:00:35]}  f6 {[%clk 0:02:06]} 32. fxg6+ {[%clk 0:00:34]}  Nxg6 {[%clk 0:02:06]} 33. Be3 {[%clk 0:00:33]}  Qd7 {[%clk 0:02:05]} 34. Nf4 {[%clk 0:00:30]}  Nxf4 {[%clk 0:02:03]} 35. gxf4 {[%clk 0:00:28]}  Bh6 {[%clk 0:02:02]} 36. f5 {[%clk 0:00:26]}  Bxe3 {[%clk 0:02:01]} 37. Qxe3 {[%clk 0:00:27]}  Rg8 {[%clk 0:02:01]} 38. Rf4 {[%clk 0:00:25]}  Qc7 {[%clk 0:02:01]} 39. Bh3 {[%clk 0:00:22]}  Bxh3 {[%clk 0:02:00]} 40. Kxh3 {[%clk 0:00:22]}  Qc5 {[%clk 0:01:51]} 41. Qf3 {[%clk 0:00:21]}  Kh6 {[%clk 0:01:52]} 42. Rc2 {[%clk 0:00:11]}  Qg1 {[%clk 0:01:49]} 43. Qf2 {[%clk 0:00:10]}  Rg7 {[%clk 0:01:34]} 44. Qxg1 {[%clk 0:00:09]}  Rxg1 {[%clk 0:01:35]} 45. Rg2 {[%clk 0:00:10]}  Rg8 {[%clk 0:01:36]} 46. Rff2 {[%clk 0:00:09]}  R8xg2 {[%clk 0:01:33]} 47. Rxg2 {[%clk 0:00:09]}  Re1 {[%clk 0:01:33]} 48. Rg8 {[%clk 0:00:08]}  Rxe4 {[%clk 0:01:33]} 49. Ra8 {[%clk 0:00:09]}  Re3+ {[%clk 0:01:33]} 50. Kg2 {[%clk 0:00:08]}  Re2+ {[%clk 0:01:34]} 51. Kf3 {[%clk 0:00:08]}  Rxa2 {[%clk 0:01:35]} 52. Re8 {[%clk 0:00:08]}  Rb2 {[%clk 0:01:33]} 53. Rxe7 {[%clk 0:00:08]}  Rxb3+ {[%clk 0:01:34]} 54. Ke4 {[%clk 0:00:08]}  a5 {[%clk 0:01:31]} 55. Rf7 {[%clk 0:00:08]}  a4 {[%clk 0:01:31]} 56. Rxf6+ {[%clk 0:00:08]}  Kg7 {[%clk 0:01:32]} 57. Rxd6 {[%clk 0:00:08]}  a3 {[%clk 0:01:32]} 58. Rd7+ {[%clk 0:00:05]}  Kf6 {[%clk 0:01:33]} 59. Ra7 {[%clk 0:00:06]}  Rh3 {[%clk 0:01:29]} 60. Ra6 {[%clk 0:00:06]}  Rxh4+ {[%clk 0:01:27]} 61. Kd5 {[%clk 0:00:06]}  Rh3 {[%clk 0:01:24]} 62. Rxb6+ {[%clk 0:00:06]}  Kxf5 {[%clk 0:01:25]} 63. Ra6 {[%clk 0:00:07]}  Rd3+ {[%clk 0:01:25]} 64. Kc5 {[%clk 0:00:06]}  h4 {[%clk 0:01:26]} 65. Kb4 {[%clk 0:00:07]}  h3 {[%clk 0:01:26]} 66. Rh6 {[%clk 0:00:07]}  a2 {[%clk 0:01:26]} 67. Ra6 {[%clk 0:00:06]}  h2 {[%clk 0:01:25]} 0-1


[Site "https://www.chess.com"]

[Event "Titled Tuesday Blitz May 30 Late 2023"]
[White "Estrada Nieto, Julian"]
[Black "Hossain, Enamul"]
[WhiteFideId "5101018"]
[BlackFideId "10200649"]
[WhiteElo "2161"]
[BlackElo "2433"]
[Result "1-0"]
[Round "10"]
[TimeControl "180+2"]
[Date "2023.05.31"]
[WhiteClock "0:00:03"]
[BlackClock "0:00:02"]

1. e4 {[%clk 0:03:00]}  c5 {[%clk 0:02:58]} 2. Nf3 {[%clk 0:02:59]}  Nc6 {[%clk 0:02:58]} 3. Bb5 {[%clk 0:02:59]}  e5 {[%clk 0:02:57]} 4. O-O {[%clk 0:02:57]}  Bd6 {[%clk 0:02:57]} 5. c3 {[%clk 0:02:50]}  a6 {[%clk 0:02:57]} 6. Ba4 {[%clk 0:02:49]}  b5 {[%clk 0:02:55]} 7. Bc2 {[%clk 0:02:48]}  Nge7 {[%clk 0:02:51]} 8. a4 {[%clk 0:02:34]}  Rb8 {[%clk 0:02:47]} 9. axb5 {[%clk 0:02:33]}  axb5 {[%clk 0:02:46]} 10. d4 {[%clk 0:02:29]}  cxd4 {[%clk 0:02:44]} 11. cxd4 {[%clk 0:02:30]}  Nxd4 {[%clk 0:02:44]} 12. Nxd4 {[%clk 0:02:30]}  exd4 {[%clk 0:02:44]} 13. Nd2 {[%clk 0:02:19]}  O-O {[%clk 0:02:33]} 14. Nf3 {[%clk 0:02:19]}  Nc6 {[%clk 0:02:27]} 15. Bb3 {[%clk 0:02:02]}  Qf6 {[%clk 0:01:53]} 16. Re1 {[%clk 0:01:40]}  h6 {[%clk 0:01:46]} 17. Bd5 {[%clk 0:01:27]}  Bf4 {[%clk 0:01:22]} 18. Bxc6 {[%clk 0:01:17]}  dxc6 {[%clk 0:01:21]} 19. Qxd4 {[%clk 0:01:17]}  Qxd4 {[%clk 0:01:07]} 20. Nxd4 {[%clk 0:01:17]}  Bxc1 {[%clk 0:01:03]} 21. Rexc1 {[%clk 0:01:17]}  Bd7 {[%clk 0:00:52]} 22. Nxc6 {[%clk 0:01:16]}  Bxc6 {[%clk 0:00:49]} 23. Rxc6 {[%clk 0:01:16]}  Rfd8 {[%clk 0:00:49]} 24. Rc2 {[%clk 0:01:06]}  Rd4 {[%clk 0:00:48]} 25. f3 {[%clk 0:01:05]}  Rbd8 {[%clk 0:00:47]} 26. Rac1 {[%clk 0:00:47]}  Rd2 {[%clk 0:00:36]} 27. b3 {[%clk 0:00:39]}  g5 {[%clk 0:00:33]} 28. Rxd2 {[%clk 0:00:35]}  Rxd2 {[%clk 0:00:32]} 29. Rc5 {[%clk 0:00:36]}  b4 {[%clk 0:00:24]} 30. Rc4 {[%clk 0:00:36]}  Rb2 {[%clk 0:00:19]} 31. Rxb4 {[%clk 0:00:36]}  Kg7 {[%clk 0:00:19]} 32. Rb6 {[%clk 0:00:32]}  h5 {[%clk 0:00:19]} 33. h3 {[%clk 0:00:31]}  h4 {[%clk 0:00:18]} 34. b4 {[%clk 0:00:26]}  Kh7 {[%clk 0:00:18]} 35. b5 {[%clk 0:00:26]}  Kg7 {[%clk 0:00:17]} 36. Kh2 {[%clk 0:00:22]}  Kh7 {[%clk 0:00:15]} 37. e5 {[%clk 0:00:20]}  Rb1 {[%clk 0:00:14]} 38. Rb7 {[%clk 0:00:18]}  Kg6 {[%clk 0:00:14]} 39. Rb6+ {[%clk 0:00:18]}  Kg7 {[%clk 0:00:13]} 40. Rb8 {[%clk 0:00:15]}  Kg6 {[%clk 0:00:12]} 41. b6 {[%clk 0:00:08]}  Kf5 {[%clk 0:00:11]} 42. b7 {[%clk 0:00:06]}  Kf4 {[%clk 0:00:11]} 43. e6 {[%clk 0:00:04]}  Ke3 {[%clk 0:00:02]} 44. exf7 {[%clk 0:00:03]} 1-0


[Site "https://www.chess.com"]

[Event "Titled Tuesday Blitz May 30 Late 2023"]
[White "Tissir, Mohamed"]
[Black "Paravyan, David"]
[WhiteFideId "9000240"]
[BlackFideId "4194985"]
[WhiteElo "2458"]
[BlackElo "2563"]
[Result "0-1"]
[Round "10"]
[TimeControl "180+2"]
[Date "2023.05.31"]
[WhiteClock "0:00:13"]
[BlackClock "0:00:07"]

1. e4 {[%clk 0:03:00]}  e5 {[%clk 0:03:00]} 2. Nf3 {[%clk 0:03:01]}  Nc6 {[%clk 0:03:00]} 3. Bc4 {[%clk 0:03:01]}  Nf6 {[%clk 0:02:57]} 4. d3 {[%clk 0:03:00]}  Bc5 {[%clk 0:02:56]} 5. c3 {[%clk 0:03:00]}  d6 {[%clk 0:02:56]} 6. Bb3 {[%clk 0:03:01]}  a5 {[%clk 0:02:55]} 7. Nbd2 {[%clk 0:03:01]}  O-O {[%clk 0:02:53]} 8. Nf1 {[%clk 0:02:57]}  Ng4 {[%clk 0:02:52]} 9. Ne3 {[%clk 0:02:57]}  Nxe3 {[%clk 0:02:51]} 10. Bxe3 {[%clk 0:02:57]}  Bxe3 {[%clk 0:02:51]} 11. fxe3 {[%clk 0:02:58]}  Be6 {[%clk 0:02:43]} 12. O-O {[%clk 0:02:57]}  h6 {[%clk 0:02:34]} 13. Rf2 {[%clk 0:02:55]}  Nb8 {[%clk 0:02:07]} 14. d4 {[%clk 0:02:54]}  Nd7 {[%clk 0:02:06]} 15. Bxe6 {[%clk 0:02:43]}  fxe6 {[%clk 0:02:06]} 16. Qb3 {[%clk 0:02:44]}  Qe7 {[%clk 0:01:24]} 17. Qxb7 {[%clk 0:02:37]}  a4 {[%clk 0:01:20]} 18. a3 {[%clk 0:02:34]}  Nf6 {[%clk 0:01:17]} 19. dxe5 {[%clk 0:02:28]}  Ng4 {[%clk 0:01:16]} 20. exd6 {[%clk 0:02:10]}  Qxd6 {[%clk 0:01:15]} 21. e5 {[%clk 0:01:57]}  Qc5 {[%clk 0:01:12]} 22. Re2 {[%clk 0:01:53]}  c6 {[%clk 0:00:59]} 23. Qb4 {[%clk 0:01:47]}  Qxb4 {[%clk 0:00:40]} 24. cxb4 {[%clk 0:01:36]}  Rf5 {[%clk 0:00:41]} 25. Rc1 {[%clk 0:01:25]}  Nxe5 {[%clk 0:00:32]} 26. Nxe5 {[%clk 0:01:23]}  Rxe5 {[%clk 0:00:33]} 27. Rxc6 {[%clk 0:01:24]}  Rd8 {[%clk 0:00:29]} 28. Rc5 {[%clk 0:01:03]}  Rd1+ {[%clk 0:00:23]} 29. Kf2 {[%clk 0:01:03]}  Rxc5 {[%clk 0:00:22]} 30. bxc5 {[%clk 0:01:02]}  Rc1 {[%clk 0:00:23]} 31. Kf3 {[%clk 0:00:59]}  Rxc5 {[%clk 0:00:22]} 32. Ke4 {[%clk 0:00:59]}  Rb5 {[%clk 0:00:17]} 33. Kd4 {[%clk 0:00:57]}  Kf7 {[%clk 0:00:16]} 34. Kc3 {[%clk 0:00:54]}  Rb3+ {[%clk 0:00:08]} 35. Kc2 {[%clk 0:00:50]}  e5 {[%clk 0:00:09]} 36. e4 {[%clk 0:00:47]}  Ke6 {[%clk 0:00:08]} 37. h3 {[%clk 0:00:39]}  g5 {[%clk 0:00:07]} 38. Kc1 {[%clk 0:00:32]}  Kd6 {[%clk 0:00:02]} 39. Kc2 {[%clk 0:00:26]}  Ke6 {[%clk 0:00:02]} 40. Kc1 {[%clk 0:00:19]}  h5 {[%clk 0:00:02]} 41. Kc2 {[%clk 0:00:20]}  h4 {[%clk 0:00:02]} 42. Kc1 {[%clk 0:00:20]}  Ke7 {[%clk 0:00:02]} 43. Kc2 {[%clk 0:00:20]}  Ke6 {[%clk 0:00:03]} 44. Kc1 {[%clk 0:00:20]}  Rg3 {[%clk 0:00:03]} 45. Kd2 {[%clk 0:00:16]}  Kd6 {[%clk 0:00:03]} 46. Kc2 {[%clk 0:00:16]}  Kc5 {[%clk 0:00:03]} 47. Rd2 {[%clk 0:00:16]}  Kc4 {[%clk 0:00:04]} 48. Re2 {[%clk 0:00:11]}  Kd4 {[%clk 0:00:04]} 49. Kd1 {[%clk 0:00:11]}  Kd3 {[%clk 0:00:02]} 50. Ke1 {[%clk 0:00:10]}  Re3 {[%clk 0:00:02]} 51. Rxe3+ {[%clk 0:00:09]}  Kxe3 {[%clk 0:00:03]} 52. Kd1 {[%clk 0:00:09]}  Kxe4 {[%clk 0:00:04]} 53. Kc2 {[%clk 0:00:09]}  Kd4 {[%clk 0:00:04]} 54. Kd2 {[%clk 0:00:07]}  Kc4 {[%clk 0:00:03]} 55. Ke2 {[%clk 0:00:07]}  Kb3 {[%clk 0:00:03]} 56. Ke3 {[%clk 0:00:08]}  Kxb2 {[%clk 0:00:04]} 57. Ke4 {[%clk 0:00:09]}  Kxa3 {[%clk 0:00:05]} 58. Kxe5 {[%clk 0:00:10]}  Kb3 {[%clk 0:00:05]} 59. Kf5 {[%clk 0:00:11]}  a3 {[%clk 0:00:06]} 60. Kxg5 {[%clk 0:00:12]}  a2 {[%clk 0:00:07]} 61. Kxh4 {[%clk 0:00:13]} 0-1


[Site "https://www.chess.com"]

[Event "Titled Tuesday Blitz May 30 Late 2023"]
[White "Liu, Casper"]
[Black "Hambleton, Aman"]
[WhiteFideId "1454153"]
[BlackFideId "2606577"]
[WhiteElo "2221"]
[BlackElo "2511"]
[Result "0-1"]
[Round "10"]
[TimeControl "180+2"]
[Date "2023.05.31"]
[WhiteClock "0:01:41"]
[BlackClock "0:01:28"]

1. d4 {[%clk 0:03:00]}  e5 {[%clk 0:02:59]} 2. dxe5 {[%clk 0:02:58]}  Nc6 {[%clk 0:03:00]} 3. Nf3 {[%clk 0:02:58]}  Qe7 {[%clk 0:03:00]} 4. Bf4 {[%clk 0:02:59]}  Qb4+ {[%clk 0:03:00]} 5. Bd2 {[%clk 0:02:59]}  Qxb2 {[%clk 0:03:01]} 6. Nc3 {[%clk 0:02:59]}  Bb4 {[%clk 0:03:01]} 7. Rb1 {[%clk 0:03:00]}  Qxc3 {[%clk 0:03:02]} 8. Bxc3 {[%clk 0:03:00]}  Bxc3+ {[%clk 0:03:03]} 9. Nd2 {[%clk 0:03:01]}  Nxe5 {[%clk 0:03:03]} 10. e3 {[%clk 0:02:59]}  Nf6 {[%clk 0:03:04]} 11. Bd3 {[%clk 0:02:56]}  O-O {[%clk 0:03:04]} 12. O-O {[%clk 0:02:55]}  d5 {[%clk 0:03:05]} 13. h3 {[%clk 0:02:51]}  b6 {[%clk 0:03:03]} 14. Nf3 {[%clk 0:02:51]}  Nxf3+ {[%clk 0:03:04]} 15. Qxf3 {[%clk 0:02:51]}  Be5 {[%clk 0:03:01]} 16. Rfd1 {[%clk 0:02:49]}  Be6 {[%clk 0:03:00]} 17. Bf5 {[%clk 0:02:41]}  Rae8 {[%clk 0:02:59]} 18. Rb3 {[%clk 0:02:37]}  Bxf5 {[%clk 0:02:53]} 19. Qxf5 {[%clk 0:02:37]}  g6 {[%clk 0:02:54]} 20. Qg5 {[%clk 0:02:33]}  Re6 {[%clk 0:02:47]} 21. Rb4 {[%clk 0:02:20]}  Ne4 {[%clk 0:01:50]} 22. Qh6 {[%clk 0:02:16]}  Bc3 {[%clk 0:01:28]} 23. Ra4 {[%clk 0:02:07]}  Bg7 {[%clk 0:01:29]} 24. Qf4 {[%clk 0:01:56]}  Nc3 {[%clk 0:01:28]} 25. Rd3 {[%clk 0:01:41]}  Ne2+ {[%clk 0:01:28]} 0-1


[Site "https://www.chess.com"]

[Event "Titled Tuesday Blitz May 30 Late 2023"]
[White "Jovic, Stanoje"]
[Black "Pakleza, Zbigniew"]
[WhiteFideId "905020"]
[BlackFideId "1119290"]
[WhiteElo "2236"]
[BlackElo "2410"]
[Result "1-0"]
[Round "10"]
[TimeControl "180+2"]
[Date "2023.05.31"]
[WhiteClock "0:00:35"]
[BlackClock "0:00:02"]

1. c4 {[%clk 0:03:00]}  c6 {[%clk 0:02:57]} 2. e4 {[%clk 0:03:00]}  e5 {[%clk 0:02:55]} 3. d4 {[%clk 0:02:58]}  d6 {[%clk 0:02:52]} 4. Nf3 {[%clk 0:02:50]}  Nd7 {[%clk 0:02:52]} 5. Nc3 {[%clk 0:02:50]}  Ngf6 {[%clk 0:02:52]} 6. Be3 {[%clk 0:02:50]}  Be7 {[%clk 0:02:52]} 7. Qc2 {[%clk 0:02:50]}  Ng4 {[%clk 0:02:50]} 8. O-O-O {[%clk 0:02:46]}  Nxe3 {[%clk 0:02:49]} 9. fxe3 {[%clk 0:02:47]}  Qa5 {[%clk 0:02:43]} 10. Be2 {[%clk 0:02:41]}  a6 {[%clk 0:02:40]} 11. g4 {[%clk 0:02:41]}  b5 {[%clk 0:02:35]} 12. c5 {[%clk 0:02:34]}  dxc5 {[%clk 0:02:11]} 13. d5 {[%clk 0:02:21]}  Bb7 {[%clk 0:02:00]} 14. dxc6 {[%clk 0:02:15]}  Bxc6 {[%clk 0:02:01]} 15. Nd5 {[%clk 0:02:14]}  Bd8 {[%clk 0:01:51]} 16. Kb1 {[%clk 0:02:12]}  O-O {[%clk 0:01:25]} 17. g5 {[%clk 0:02:12]}  Re8 {[%clk 0:01:15]} 18. h4 {[%clk 0:02:11]}  c4 {[%clk 0:01:13]} 19. h5 {[%clk 0:02:09]}  Nc5 {[%clk 0:00:54]} 20. g6 {[%clk 0:02:08]}  fxg6 {[%clk 0:00:50]} 21. hxg6 {[%clk 0:02:08]}  h6 {[%clk 0:00:50]} 22. Nh4 {[%clk 0:02:04]}  Bxh4 {[%clk 0:00:41]} 23. Rxh4 {[%clk 0:02:03]}  Qa4 {[%clk 0:00:36]} 24. Qc1 {[%clk 0:01:52]}  Rad8 {[%clk 0:00:09]} 25. Nc3 {[%clk 0:01:48]}  Qa5 {[%clk 0:00:08]} 26. Bg4 {[%clk 0:01:27]}  Nd3 {[%clk 0:00:06]} 27. Qc2 {[%clk 0:01:20]}  Qb6 {[%clk 0:00:05]} 28. Rh3 {[%clk 0:01:11]}  Qc5 {[%clk 0:00:03]} 29. Rdh1 {[%clk 0:01:06]}  b4 {[%clk 0:00:03]} 30. Nd5 {[%clk 0:01:06]}  Rxd5 {[%clk 0:00:01]} 31. exd5 {[%clk 0:01:06]}  Bxd5 {[%clk 0:00:02]} 32. Bf5 {[%clk 0:01:02]}  Bxh1 {[%clk 0:00:02]} 33. Bxd3 {[%clk 0:00:59]}  Bd5 {[%clk 0:00:02]} 34. Bf5 {[%clk 0:00:54]}  Rf8 {[%clk 0:00:02]} 35. e4 {[%clk 0:00:52]}  Bc6 {[%clk 0:00:02]} 36. Be6+ {[%clk 0:00:50]}  Kh8 {[%clk 0:00:03]} 37. Qc1 {[%clk 0:00:36]}  Rf6 {[%clk 0:00:02]} 38. Rxh6+ {[%clk 0:00:35]} 1-0


[Site "https://www.chess.com"]

[Event "Titled Tuesday Blitz May 30 Late 2023"]
[White "Tanenbaum, Zachary"]
[Black "Jimenez Almeida, Luis David"]
[WhiteFideId "2060850"]
[BlackFideId "22242244"]
[WhiteElo "2175"]
[BlackElo "2245"]
[Result "1-0"]
[Round "10"]
[TimeControl "180+2"]
[Date "2023.05.31"]
[WhiteClock "0:00:56"]
[BlackClock "0:00:17"]

1. e4 {[%clk 0:03:00]}  c5 {[%clk 0:01:35]} 2. Nf3 {[%clk 0:02:58]}  e6 {[%clk 0:01:35]} 3. d4 {[%clk 0:02:59]}  c4 {[%clk 0:01:36]} 4. Bxc4 {[%clk 0:02:57]}  d5 {[%clk 0:01:33]} 5. exd5 {[%clk 0:02:57]}  exd5 {[%clk 0:01:33]} 6. Bd3 {[%clk 0:02:54]}  Nf6 {[%clk 0:01:33]} 7. O-O {[%clk 0:02:54]}  Be7 {[%clk 0:01:34]} 8. Re1 {[%clk 0:02:53]}  O-O {[%clk 0:01:34]} 9. Ne5 {[%clk 0:02:48]}  Be6 {[%clk 0:01:33]} 10. Bg5 {[%clk 0:02:41]}  Nc6 {[%clk 0:01:33]} 11. c3 {[%clk 0:02:39]}  Qb6 {[%clk 0:01:32]} 12. Re2 {[%clk 0:02:27]}  Rfe8 {[%clk 0:01:30]} 13. b3 {[%clk 0:02:13]}  Rad8 {[%clk 0:01:28]} 14. Nd2 {[%clk 0:02:13]}  h6 {[%clk 0:01:25]} 15. Bh4 {[%clk 0:02:11]}  Nh5 {[%clk 0:01:04]} 16. Bxe7 {[%clk 0:02:07]}  Nxe7 {[%clk 0:01:05]} 17. Re3 {[%clk 0:02:01]}  Nf4 {[%clk 0:01:02]} 18. Bc2 {[%clk 0:01:51]}  Rc8 {[%clk 0:00:59]} 19. Qf3 {[%clk 0:01:51]}  g5 {[%clk 0:00:55]} 20. Ng4 {[%clk 0:01:37]}  Bxg4 {[%clk 0:00:52]} 21. Qxg4 {[%clk 0:01:38]}  Neg6 {[%clk 0:00:37]} 22. Rae1 {[%clk 0:01:35]}  Red8 {[%clk 0:00:28]} 23. h4 {[%clk 0:01:25]}  Qf6 {[%clk 0:00:24]} 24. hxg5 {[%clk 0:01:14]}  Qxg5 {[%clk 0:00:25]} 25. Qxg5 {[%clk 0:01:09]}  hxg5 {[%clk 0:00:26]} 26. Rg3 {[%clk 0:01:09]}  f6 {[%clk 0:00:24]} 27. Bf5 {[%clk 0:01:07]}  Rc6 {[%clk 0:00:23]} 28. Rge3 {[%clk 0:01:07]}  Kg7 {[%clk 0:00:22]} 29. g3 {[%clk 0:01:06]}  Nh5 {[%clk 0:00:20]} 30. Bg4 {[%clk 0:01:06]}  Kh6 {[%clk 0:00:20]} 31. Kg2 {[%clk 0:01:05]}  Rf8 {[%clk 0:00:17]} 32. Rh1 {[%clk 0:01:04]}  Nh4+ {[%clk 0:00:16]} 33. gxh4 {[%clk 0:01:03]}  Nf4+ {[%clk 0:00:16]} 34. Kf3 {[%clk 0:01:03]}  f5 {[%clk 0:00:17]} 35. hxg5+ {[%clk 0:01:02]}  Kxg5 {[%clk 0:00:18]} 36. Bh3 {[%clk 0:01:00]}  Rh6 {[%clk 0:00:18]} 37. Rg1+ {[%clk 0:00:59]}  Kf6 {[%clk 0:00:18]} 38. Kxf4 {[%clk 0:00:59]}  Rfh8 {[%clk 0:00:17]} 39. Bxf5 {[%clk 0:00:56]}  Rh4+ {[%clk 0:00:17]} 40. Bg4 {[%clk 0:00:56]} 1-0


[Site "https://www.chess.com"]